{"text_format":"1","workbook":"xlsx","n_sheets":1,"sheets":["Hoja1"],"not_rendered":{"charts":0,"images":0,"macros":1,"external_links":0,"defined_names":0,"comments":0,"pivot_tables":0},"unopened":[],"bounds":{"document_bytes":16777216,"sheet_cells":100000,"rows_first":2000,"rows_last":500,"rows_between":2000,"halvings":0,"cell_chars":16384,"cell_head_chars":4096},"cells_cut":0,"cells_raw":0,"read":"whole","date_system":"1900"}

{"sheet":"Hoja1","index":0,"n_rows":21,"n_cols":4,"rows_kept":21,"cut":false,"hidden":false,"merged":[]}
["N° Encuestados","Sexo","Pregunta","Respuesta"]
[1,{"$f":"CHOOSE(RANDBETWEEN(1,2),\"M\",\"F\")","v":"M"},{"$f":"IF(B2=\"M\",\"¿Cuál es la colonia de hombre que más les gusta?\",\"¿Cuál es la colonia de mujer que más les gusta?\")","v":"¿Cuál es la colonia de hombre que más les gusta?"}]
[2,{"$f":"CHOOSE(RANDBETWEEN(1,2),\"M\",\"F\")","v":"F"},{"$f":"IF(B3=\"M\",\"¿Cuál es la colonia de hombre que más les gusta?\",\"¿Cuál es la colonia de mujer que más les gusta?\")","v":"¿Cuál es la colonia de mujer que más les gusta?"}]
[3,"M","¿Cuál es la colonia de hombre que más les gusta?"]
[4,"F",{"$f":"IF(B5=\"M\",\"¿Cuál es la colonia de hombre que más les gusta?\",\"¿Cuál es la colonia de mujer que más les gusta?\")","v":"¿Cuál es la colonia de mujer que más les gusta?"}]
[5,"F","¿Cuál es la colonia de mujer que más les gusta?"]
[6,"M","¿Cuál es la colonia de hombre que más les gusta?"]
[7,"M","¿Cuál es la colonia de hombre que más les gusta?"]
[8,"F","¿Cuál es la colonia de mujer que más les gusta?"]
[9,"F","¿Cuál es la colonia de mujer que más les gusta?"]
[10,"M","¿Cuál es la colonia de hombre que más les gusta?"]
[11,"M","¿Cuál es la colonia de hombre que más les gusta?"]
[12,"F","¿Cuál es la colonia de mujer que más les gusta?"]
[13,"F","¿Cuál es la colonia de mujer que más les gusta?"]
[14,"F","¿Cuál es la colonia de mujer que más les gusta?"]
[15,"M","¿Cuál es la colonia de hombre que más les gusta?"]
[16,"M","¿Cuál es la colonia de hombre que más les gusta?"]
[17,"M","¿Cuál es la colonia de hombre que más les gusta?"]
[18,"M","¿Cuál es la colonia de hombre que más les gusta?"]
[19,"F","¿Cuál es la colonia de mujer que más les gusta?"]
[20,"F","¿Cuál es la colonia de mujer que más les gusta?"]